[Event "Late-Titled-Tuesday-Blitz-March-12-2024"]
[Site "Chess.com"]
[Date "2024.03.12"]
[Round "9"]
[White "only_strong_moves"]
[Black "GothamChess"]
[Result "1-0"]
[WhiteElo "2577"]
[BlackElo "2685"]
[TimeControl "180+1"]
[EndTime "15:43:19 PDT"]
[Termination "only_strong_moves won on time"]

1. Nc3 {[%clk 0:03:00.9]} 1... b6 {[%clk 0:02:55.9]} 2. Nf3 {[%clk 0:02:58.9]}
2... Bb7 {[%clk 0:02:56.2]} 3. g3 {[%clk 0:02:55.5]} 3... e6 {[%clk 0:02:56.3]}
4. Bg2 {[%clk 0:02:56]} 4... Nf6 {[%clk 0:02:54.2]} 5. O-O {[%clk 0:02:55.9]}
5... d5 {[%clk 0:02:53.6]} 6. d4 {[%clk 0:02:54.9]} 6... Be7 {[%clk 0:02:52.9]}
7. Bf4 {[%clk 0:02:54.7]} 7... O-O {[%clk 0:02:52.4]} 8. Re1 {[%clk 0:02:46.5]}
8... c5 {[%clk 0:02:52.4]} 9. Nb5 {[%clk 0:02:44.3]} 9... Nc6 {[%clk 0:02:39.4]}
10. c3 {[%clk 0:02:30]} 10... a6 {[%clk 0:02:37.2]} 11. Na3 {[%clk 0:02:30.5]}
11... cxd4 {[%clk 0:02:36.3]} 12. Nxd4 {[%clk 0:02:28.8]} 12... Bxa3 {[%clk
0:02:30.7]} 13. Nxc6 {[%clk 0:02:26.6]} 13... Bxc6 {[%clk 0:02:31]} 14. bxa3
{[%clk 0:02:27.2]} 14... b5 {[%clk 0:02:01.9]} 15. Qd4 {[%clk 0:02:23.2]} 15...
Qe7 {[%clk 0:02:00.2]} 16. Qb4 {[%clk 0:02:15.4]} 16... Rfe8 {[%clk 0:01:57.2]}
17. Bd6 {[%clk 0:02:03.7]} 17... Qd8 {[%clk 0:01:51.1]} 18. Be5 {[%clk
0:01:59.4]} 18... Qe7 {[%clk 0:01:50]} 19. Bd6 {[%clk 0:01:59.1]} 19... Qd8
{[%clk 0:01:46.8]} 20. Be5 {[%clk 0:01:12.3]} 20... Nd7 {[%clk 0:01:46.6]} 21.
Bf4 {[%clk 0:01:09.8]} 21... e5 {[%clk 0:01:41.4]} 22. Be3 {[%clk 0:01:08.8]}
22... a5 {[%clk 0:01:30.9]} 23. Qb2 {[%clk 0:01:07.6]} 23... Qc7 {[%clk
0:01:20.7]} 24. Red1 {[%clk 0:01:06]} 24... Qb7 {[%clk 0:01:17.8]} 25. a4 {[%clk
0:01:00.6]} 25... b4 {[%clk 0:01:11.6]} 26. a3 {[%clk 0:00:50.6]} 26... b3
{[%clk 0:01:06.7]} 27. Rab1 {[%clk 0:00:38.2]} 27... Rab8 {[%clk 0:01:06.5]} 28.
Rd2 {[%clk 0:00:27.3]} 28... Red8 {[%clk 0:00:41.9]} 29. Rbd1 {[%clk 0:00:26.9]}
29... Nf8 {[%clk 0:00:39.5]} 30. f4 {[%clk 0:00:20.4]} 30... f6 {[%clk
0:00:33.4]} 31. f5 {[%clk 0:00:16.9]} 31... Qc8 {[%clk 0:00:27.3]} 32. g4 {[%clk
0:00:16.7]} 32... Qa6 {[%clk 0:00:21.2]} 33. Bf2 {[%clk 0:00:06.1]} 33... Qc4
{[%clk 0:00:18.7]} 34. h3 {[%clk 0:00:06.7]} 34... Qxa4 {[%clk 0:00:17]} 35. e4
{[%clk 0:00:06.5]} 35... Qc4 {[%clk 0:00:11.8]} 36. exd5 {[%clk 0:00:05.6]}
36... Ba8 {[%clk 0:00:12.6]} 37. Bf1 {[%clk 0:00:05.6]} 37... Qf4 {[%clk
0:00:08.3]} 38. c4 {[%clk 0:00:05.1]} 38... a4 {[%clk 0:00:07.6]} 39. Bg2 {[%clk
0:00:04.6]} 39... Qxc4 {[%clk 0:00:05.9]} 40. d6 {[%clk 0:00:05]} 40... Bxg2
{[%clk 0:00:05.3]} 41. Kxg2 {[%clk 0:00:05.9]} 41... Qc6+ {[%clk 0:00:04.9]} 42.
Kg1 {[%clk 0:00:05.7]} 42... Rd7 {[%clk 0:00:05]} 43. Rc1 {[%clk 0:00:05.5]}
43... Qb7 {[%clk 0:00:05]} 44. Rc4 {[%clk 0:00:03.7]} 44... Qb5 {[%clk
0:00:04.3]} 45. Rb4 {[%clk 0:00:03.3]} 45... h6 {[%clk 0:00:01.6]} 46. Rxb5
{[%clk 0:00:03.4]} 46... Rxb5 {[%clk 0:00:02.5]} 47. Rd3 {[%clk 0:00:03.8]}
47... Rbb7 {[%clk 0:00:02.6]} 48. Be1 {[%clk 0:00:04.4]} 48... Nh7 {[%clk
0:00:03]} 49. Bb4 {[%clk 0:00:05]} 49... Ng5 {[%clk 0:00:03.4]} 50. Rc3 {[%clk
0:00:05.4]} 50... e4 {[%clk 0:00:02.3]} 51. Rc8+ {[%clk 0:00:05.6]} 51... Kh7
{[%clk 0:00:02.9]} 52. Qc3 {[%clk 0:00:05.5]} 52... Nf3+ {[%clk 0:00:02.6]} 53.
Kf2 {[%clk 0:00:06]} 53... Ne5 {[%clk 0:00:02.7]} 54. Ke3 {[%clk 0:00:06.2]}
54... b2 {[%clk 0:00:02.3]} 55. Qxb2 {[%clk 0:00:05.8]} 55... Rb8 {[%clk
0:00:02.7]} 56. Qc3 {[%clk 0:00:05.2]} 56... Rbb7 {[%clk 0:00:02.1]} 57. Rc7
{[%clk 0:00:05.5]} 57... Rbxc7 {[%clk 0:00:01.2]} 58. dxc7 {[%clk 0:00:06.4]}
1-0

[Event "Late-Titled-Tuesday-Blitz-March-12-2024"]
[Site "Chess.com"]
[Date "2024.03.12"]
[Round "9"]
[White "SaqoChess_Twitch"]
[Black "rasmussvane"]
[Result "0-1"]
[WhiteElo "2674"]
[BlackElo "2951"]
[TimeControl "180+1"]
[EndTime "15:43:24 PDT"]
[Termination "rasmussvane won by checkmate"]

1. d4 {[%clk 0:03:00.9]} 1... Nf6 {[%clk 0:02:51.2]} 2. c4 {[%clk 0:03:01.4]}
2... e6 {[%clk 0:02:48.9]} 3. Nc3 {[%clk 0:03:02.1]} 3... Bb4 {[%clk 0:02:43.7]}
4. e3 {[%clk 0:03:01.7]} 4... O-O {[%clk 0:02:38.2]} 5. a3 {[%clk 0:03:02.1]}
5... Bxc3+ {[%clk 0:02:37]} 6. bxc3 {[%clk 0:03:03]} 6... d6 {[%clk 0:02:37.4]}
7. Bd3 {[%clk 0:03:03.6]} 7... e5 {[%clk 0:02:35.5]} 8. Ne2 {[%clk 0:03:02.5]}
8... c5 {[%clk 0:02:14.2]} 9. O-O {[%clk 0:02:58.9]} 9... b6 {[%clk 0:02:05.6]}
10. Ng3 {[%clk 0:02:55.4]} 10... Nc6 {[%clk 0:01:49.4]} 11. d5 {[%clk
0:02:54.7]} 11... Na5 {[%clk 0:01:46.2]} 12. f4 {[%clk 0:02:54.9]} 12... exf4
{[%clk 0:01:39.7]} 13. exf4 {[%clk 0:02:54.9]} 13... Ba6 {[%clk 0:01:32.4]} 14.
f5 {[%clk 0:02:53.6]} 14... h6 {[%clk 0:01:32.7]} 15. Rf4 {[%clk 0:02:14]} 15...
Re8 {[%clk 0:01:31]} 16. Bd2 {[%clk 0:02:09.2]} 16... Re5 {[%clk 0:01:24.2]} 17.
h3 {[%clk 0:01:42.2]} 17... Qe7 {[%clk 0:01:22.7]} 18. Kh2 {[%clk 0:01:42.5]}
18... Re8 {[%clk 0:01:22.6]} 19. Rb1 {[%clk 0:01:22.5]} 19... Nxd5 {[%clk
0:01:08.6]} 20. cxd5 {[%clk 0:01:17.4]} 20... Bxd3 {[%clk 0:01:09.5]} 21. f6
{[%clk 0:01:18.1]} 21... gxf6 {[%clk 0:01:03.9]} 22. Rg4+ {[%clk 0:01:09.8]}
22... Bg6 {[%clk 0:00:50.6]} 23. Bf4 {[%clk 0:00:37.5]} 23... Rg5 {[%clk
0:00:33.3]} 24. Bxg5 {[%clk 0:00:31.5]} 24... hxg5 {[%clk 0:00:33.5]} 25. Rb2
{[%clk 0:00:29.4]} 25... Qd8 {[%clk 0:00:26]} 26. Rf2 {[%clk 0:00:28.6]} 26...
Re5 {[%clk 0:00:23.9]} 27. c4 {[%clk 0:00:28.8]} 27... f5 {[%clk 0:00:21.2]} 28.
Nxf5 {[%clk 0:00:22.7]} 28... Rxf5 {[%clk 0:00:20.6]} 29. Qf1 {[%clk 0:00:20.1]}
29... Rxf2 {[%clk 0:00:19.5]} 30. Qxf2 {[%clk 0:00:21]} 30... f5 {[%clk
0:00:17.9]} 31. Rg3 {[%clk 0:00:20.5]} 31... Nxc4 {[%clk 0:00:17.4]} 32. h4
{[%clk 0:00:16.6]} 32... g4 {[%clk 0:00:15.6]} 33. Qf4 {[%clk 0:00:08.9]} 33...
Qxh4+ {[%clk 0:00:14.9]} 34. Rh3 {[%clk 0:00:07.2]} 34... Qf6 {[%clk 0:00:13.2]}
35. Rh6 {[%clk 0:00:06.1]} 35... Kg7 {[%clk 0:00:13.2]} 36. Rxg6+ {[%clk
0:00:03.6]} 36... Kxg6 {[%clk 0:00:13.1]} 37. Qxc4 {[%clk 0:00:04.5]} 37... Qd4
{[%clk 0:00:12.5]} 38. Qa6 {[%clk 0:00:03.8]} 38... Qxd5 {[%clk 0:00:12]} 39.
Qc8 {[%clk 0:00:04.5]} 39... Qe5+ {[%clk 0:00:11.8]} 40. Kg1 {[%clk 0:00:03.8]}
40... d5 {[%clk 0:00:10.2]} 41. a4 {[%clk 0:00:04.2]} 41... d4 {[%clk
0:00:10.1]} 42. a5 {[%clk 0:00:04.8]} 42... bxa5 {[%clk 0:00:09.5]} 43. Qa6+
{[%clk 0:00:05.1]} 43... Kg5 {[%clk 0:00:09.8]} 44. Qxa5 {[%clk 0:00:04.9]}
44... Qe3+ {[%clk 0:00:08.8]} 45. Kh2 {[%clk 0:00:04.4]} 45... Qe5+ {[%clk
0:00:07.9]} 46. g3 {[%clk 0:00:04.5]} 46... Qe2+ {[%clk 0:00:07.3]} 47. Kh1
{[%clk 0:00:04.7]} 47... Qf3+ {[%clk 0:00:07]} 48. Kh2 {[%clk 0:00:05.4]} 48...
Qf2+ {[%clk 0:00:06.9]} 49. Kh1 {[%clk 0:00:05.9]} 49... Qf1+ {[%clk 0:00:07.5]}
50. Kh2 {[%clk 0:00:06.3]} 50... Qh3+ {[%clk 0:00:08]} 51. Kg1 {[%clk
0:00:06.9]} 51... Qxg3+ {[%clk 0:00:08.7]} 52. Kh1 {[%clk 0:00:07.6]} 52... Qf3+
{[%clk 0:00:08.6]} 53. Kg1 {[%clk 0:00:07.5]} 53... Qe3+ {[%clk 0:00:08.5]} 54.
Kf1 {[%clk 0:00:07.3]} 54... Kf4 {[%clk 0:00:08.4]} 55. Qc7+ {[%clk 0:00:06.5]}
55... Kf3 {[%clk 0:00:08.6]} 56. Qc6+ {[%clk 0:00:06.9]} 56... Qe4 {[%clk
0:00:08.1]} 57. Qb5 {[%clk 0:00:06]} 57... d3 {[%clk 0:00:05.7]} 58. Kg1 {[%clk
0:00:02.6]} 58... Qe1+ {[%clk 0:00:05.6]} 59. Kh2 {[%clk 0:00:03.3]} 59... Qg3+
{[%clk 0:00:06.5]} 60. Kh1 {[%clk 0:00:03.9]} 60... Qg2# {[%clk 0:00:07.4]} 0-1

[Event "Late-Titled-Tuesday-Blitz-March-12-2024"]
[Site "Chess.com"]
[Date "2024.03.12"]
[Round "9"]
[White "Sinquefield"]
[Black "nindjaxx8"]
[Result "0-1"]
[WhiteElo "2516"]
[BlackElo "2680"]
[TimeControl "180+1"]
[EndTime "15:43:26 PDT"]
[Termination "nindjaxx8 won by resignation"]

1. d4 {[%clk 0:03:00.9]} 1... d5 {[%clk 0:02:56.9]} 2. Nf3 {[%clk 0:03:00.6]}
2... Nf6 {[%clk 0:02:55.8]} 3. c3 {[%clk 0:02:59.7]} 3... Bf5 {[%clk 0:02:50]}
4. Qb3 {[%clk 0:02:53.6]} 4... Qc8 {[%clk 0:02:46.1]} 5. h3 {[%clk 0:02:50.9]}
5... e6 {[%clk 0:02:44.6]} 6. Bf4 {[%clk 0:02:49.7]} 6... Bd6 {[%clk 0:02:40.3]}
7. Ne5 {[%clk 0:02:46.4]} 7... O-O {[%clk 0:02:36.7]} 8. Nd2 {[%clk 0:02:45.7]}
8... Bg6 {[%clk 0:02:25.5]} 9. e3 {[%clk 0:02:41.7]} 9... Ne4 {[%clk 0:02:08.7]}
10. Nxe4 {[%clk 0:02:37.7]} 10... Bxe4 {[%clk 0:02:07]} 11. f3 {[%clk
0:02:26.9]} 11... Bg6 {[%clk 0:02:05]} 12. Nxg6 {[%clk 0:02:26.6]} 12... hxg6
{[%clk 0:02:03.7]} 13. Bxd6 {[%clk 0:02:26.7]} 13... cxd6 {[%clk 0:02:04.6]} 14.
Bd3 {[%clk 0:02:24.6]} 14... Nc6 {[%clk 0:02:00.9]} 15. O-O {[%clk 0:02:23.1]}
15... Qc7 {[%clk 0:01:59.4]} 16. Rac1 {[%clk 0:02:10.8]} 16... Qe7 {[%clk
0:01:53.6]} 17. Qd1 {[%clk 0:02:07.4]} 17... Rac8 {[%clk 0:01:52.5]} 18. Bb1
{[%clk 0:02:06.6]} 18... Rfd8 {[%clk 0:01:49.9]} 19. Qe1 {[%clk 0:02:06.5]}
19... Na5 {[%clk 0:01:32.4]} 20. b3 {[%clk 0:02:01.5]} 20... b6 {[%clk
0:01:27.4]} 21. e4 {[%clk 0:01:49.1]} 21... dxe4 {[%clk 0:01:26.3]} 22. fxe4
{[%clk 0:01:47.7]} 22... Rc7 {[%clk 0:01:26]} 23. e5 {[%clk 0:01:45.4]} 23... d5
{[%clk 0:01:23.7]} 24. Rf3 {[%clk 0:01:43.5]} 24... Rdc8 {[%clk 0:01:23]} 25.
Qd2 {[%clk 0:01:42.9]} 25... Qe8 {[%clk 0:01:08.6]} 26. Rcf1 {[%clk 0:01:40.6]}
26... Nc6 {[%clk 0:00:57.8]} 27. h4 {[%clk 0:01:38.7]} 27... b5 {[%clk
0:00:53.6]} 28. b4 {[%clk 0:01:30.6]} 28... Ne7 {[%clk 0:00:31.8]} 29. Rh3
{[%clk 0:01:19.6]} 29... Nf5 {[%clk 0:00:27.6]} 30. g4 {[%clk 0:01:11.7]} 30...
Nh6 {[%clk 0:00:26.4]} 31. Rf4 {[%clk 0:01:08.8]} 31... Qd8 {[%clk 0:00:18.2]}
32. g5 {[%clk 0:00:55.4]} 32... Nf5 {[%clk 0:00:18.5]} 33. Rf2 {[%clk
0:00:50.3]} 33... Rc6 {[%clk 0:00:16]} 34. h5 {[%clk 0:00:47.5]} 34... Qc7
{[%clk 0:00:15.8]} 35. Rff3 {[%clk 0:00:19.2]} 35... a5 {[%clk 0:00:14.5]} 36.
a3 {[%clk 0:00:18.6]} 36... axb4 {[%clk 0:00:14.4]} 37. axb4 {[%clk 0:00:19.5]}
37... Ra8 {[%clk 0:00:14.8]} 38. Bc2 {[%clk 0:00:16.9]} 38... Ra2 {[%clk
0:00:12.7]} 39. Qd1 {[%clk 0:00:13.7]} 39... Rca6 {[%clk 0:00:04.2]} 40. Rh2
{[%clk 0:00:11.5]} 40... Ra1 {[%clk 0:00:04.4]} 41. Bb1 {[%clk 0:00:11.9]} 41...
Qc4 {[%clk 0:00:04.2]} 42. h6 {[%clk 0:00:09.3]} 42... gxh6 {[%clk 0:00:03.5]}
43. gxh6 {[%clk 0:00:09.8]} 43... Kh7 {[%clk 0:00:03.9]} 44. Rf1 {[%clk
0:00:07.8]} 44... Qxc3 {[%clk 0:00:02.9]} 45. Qg4 {[%clk 0:00:06.4]} 45... Qe3+
{[%clk 0:00:02.3]} 46. Kh1 {[%clk 0:00:06.1]} 46... R6a3 {[%clk 0:00:02.2]} 47.
Rg2 {[%clk 0:00:04.8]} 47... Rb3 {[%clk 0:00:02.5]} 48. Bd3 {[%clk 0:00:03.8]}
48... Qxd3 {[%clk 0:00:01.6]} 49. Rxa1 {[%clk 0:00:03.4]} 49... Rb1+ {[%clk
0:00:02.4]} 50. Rxb1 {[%clk 0:00:03.7]} 50... Qxb1+ {[%clk 0:00:03.3]} 51. Kh2
{[%clk 0:00:04.2]} 51... Qxb4 {[%clk 0:00:04]} 52. Qf4 {[%clk 0:00:03.7]} 52...
Qxd4 {[%clk 0:00:04]} 53. Qxd4 {[%clk 0:00:04]} 53... Nxd4 {[%clk 0:00:04.9]}
54. Rd2 {[%clk 0:00:03.7]} 54... Nf3+ {[%clk 0:00:05.1]} 55. Kg3 {[%clk
0:00:04.3]} 55... Nxd2 {[%clk 0:00:06]} 56. Kf4 {[%clk 0:00:05.2]} 56... Ne4
{[%clk 0:00:06.3]} 0-1

[Event "Late-Titled-Tuesday-Blitz-March-12-2024"]
[Site "Chess.com"]
[Date "2024.03.12"]
[Round "9"]
[White "Meri-Arabidze"]
[Black "DeArron_Fox"]
[Result "1-0"]
[WhiteElo "2694"]
[BlackElo "2530"]
[TimeControl "180+1"]
[EndTime "15:43:27 PDT"]
[Termination "Meri-Arabidze won by resignation"]

1. d4 {[%clk 0:03:00.9]} 1... d5 {[%clk 0:02:57.9]} 2. c4 {[%clk 0:03:01.4]}
2... e6 {[%clk 0:02:57.9]} 3. Nc3 {[%clk 0:03:02]} 3... Nf6 {[%clk 0:02:57]} 4.
cxd5 {[%clk 0:03:01.9]} 4... exd5 {[%clk 0:02:57.9]} 5. Bg5 {[%clk 0:03:02]}
5... Be7 {[%clk 0:02:58.5]} 6. e3 {[%clk 0:03:02.1]} 6... c6 {[%clk 0:02:59]} 7.
Bd3 {[%clk 0:03:02.2]} 7... Nbd7 {[%clk 0:02:58.7]} 8. Nge2 {[%clk 0:03:01.8]}
8... Nh5 {[%clk 0:02:58.7]} 9. Bxe7 {[%clk 0:02:58.5]} 9... Qxe7 {[%clk
0:02:59.6]} 10. Qc2 {[%clk 0:02:56.4]} 10... g6 {[%clk 0:02:58.2]} 11. O-O-O
{[%clk 0:02:54.4]} 11... Nb6 {[%clk 0:02:52.5]} 12. h3 {[%clk 0:02:54.2]} 12...
Be6 {[%clk 0:02:51.8]} 13. g4 {[%clk 0:02:52.6]} 13... Nf6 {[%clk 0:02:50.4]}
14. Kb1 {[%clk 0:02:51.8]} 14... O-O-O {[%clk 0:02:50.7]} 15. Rc1 {[%clk
0:02:49.7]} 15... Kb8 {[%clk 0:02:50.6]} 16. Nf4 {[%clk 0:02:39.5]} 16... Rc8
{[%clk 0:02:34.4]} 17. Qb3 {[%clk 0:02:36.5]} 17... c5 {[%clk 0:02:30.3]} 18.
dxc5 {[%clk 0:02:34.1]} 18... Rxc5 {[%clk 0:02:30.5]} 19. Qb4 {[%clk 0:02:25.2]}
19... Rhc8 {[%clk 0:02:11]} 20. Qd4 {[%clk 0:02:22.6]} 20... Ne8 {[%clk
0:01:24.3]} 21. Rc2 {[%clk 0:02:21.1]} 21... Nd6 {[%clk 0:01:23.4]} 22. Rhc1
{[%clk 0:02:20.9]} 22... a6 {[%clk 0:01:01.2]} 23. Nce2 {[%clk 0:01:50.4]} 23...
Nbc4 {[%clk 0:00:50.3]} 24. Bxc4 {[%clk 0:01:43.8]} 24... dxc4 {[%clk
0:00:28.4]} 25. Nc3 {[%clk 0:01:40.9]} 25... Nb5 {[%clk 0:00:15.3]} 26. Nxb5
{[%clk 0:01:35.8]} 26... axb5 {[%clk 0:00:16.2]} 27. a3 {[%clk 0:01:29.1]} 27...
R5c6 {[%clk 0:00:05.4]} 28. Qe5+ {[%clk 0:01:22.4]} 28... Qd6 {[%clk 0:00:03.6]}
29. Qxb5 {[%clk 0:01:20.7]} 29... c3 {[%clk 0:00:02.6]} 30. Qd3 {[%clk
0:00:52.7]} 30... Qxd3 {[%clk 0:00:02.3]} 31. Nxd3 {[%clk 0:00:53.5]} 31... cxb2
{[%clk 0:00:02.9]} 32. Kxb2 {[%clk 0:00:40]} 32... Rb6+ {[%clk 0:00:02.8]} 33.
Nb4 {[%clk 0:00:40.4]} 33... Rxc2+ {[%clk 0:00:02.2]} 34. Rxc2 {[%clk
0:00:41.3]} 34... Rd6 {[%clk 0:00:02.4]} 35. Kc3 {[%clk 0:00:38.6]} 35... h5
{[%clk 0:00:02.5]} 36. gxh5 {[%clk 0:00:37.3]} 36... gxh5 {[%clk 0:00:03.4]} 37.
h4 {[%clk 0:00:37.9]} 37... Bf5 {[%clk 0:00:02.5]} 38. Rd2 {[%clk 0:00:37.5]}
38... Rg6 {[%clk 0:00:02.8]} 39. Rd4 {[%clk 0:00:33.9]} 39... Rg4 {[%clk
0:00:02]} 40. Rxg4 {[%clk 0:00:32.4]} 40... Bxg4 {[%clk 0:00:02.9]} 41. Kd4
{[%clk 0:00:30.7]} 41... Kc7 {[%clk 0:00:03.2]} 42. Kc5 {[%clk 0:00:25.1]} 42...
b6+ {[%clk 0:00:02.3]} 43. Kd5 {[%clk 0:00:24.3]} 43... Kd7 {[%clk 0:00:01.9]}
44. e4 {[%clk 0:00:20.9]} 44... Ke7 {[%clk 0:00:02]} 45. f4 {[%clk 0:00:20.6]}
45... Bf3 {[%clk 0:00:02]} 46. Nc6+ {[%clk 0:00:19.5]} 46... Kf6 {[%clk
0:00:01.6]} 47. Ne5 {[%clk 0:00:16.3]} 47... Bg2 {[%clk 0:00:01.8]} 48. Nd7+
{[%clk 0:00:16]} 48... Ke7 {[%clk 0:00:02.2]} 49. Nxb6 {[%clk 0:00:16.6]} 49...
f5 {[%clk 0:00:03.1]} 50. Nc4 {[%clk 0:00:11.9]} 50... Bxe4+ {[%clk 0:00:01.7]}
51. Ke5 {[%clk 0:00:11.6]} 51... Bd3 {[%clk 0:00:02.2]} 52. Ne3 {[%clk
0:00:11.8]} 52... Kd7 {[%clk 0:00:01.2]} 53. Nxf5 {[%clk 0:00:12]} 53... Kc6
{[%clk 0:00:01.7]} 54. Ng7 {[%clk 0:00:12]} 54... Kb5 {[%clk 0:00:02.1]} 55. f5
{[%clk 0:00:12]} 55... Ka4 {[%clk 0:00:01.8]} 56. Nxh5 {[%clk 0:00:11.8]} 56...
Kxa3 {[%clk 0:00:01.8]} 57. Nf4 {[%clk 0:00:11.8]} 57... Bc4 {[%clk 0:00:01.6]}
58. Ne6 {[%clk 0:00:11.8]} 58... Bd3 {[%clk 0:00:01.4]} 59. f6 {[%clk
0:00:11.7]} 59... Bg6 {[%clk 0:00:02.3]} 60. Ng5 {[%clk 0:00:11.1]} 60... Kb4
{[%clk 0:00:02.9]} 61. f7 {[%clk 0:00:11.6]} 61... Bxf7 {[%clk 0:00:02.6]} 62.
Nxf7 {[%clk 0:00:12.5]} 1-0

[Event "Late-Titled-Tuesday-Blitz-March-12-2024"]
[Site "Chess.com"]
[Date "2024.03.12"]
[Round "9"]
[White "DavidGavrilescu18"]
[Black "Perecke"]
[Result "1-0"]
[WhiteElo "2774"]
[BlackElo "2619"]
[TimeControl "180+1"]
[EndTime "15:43:29 PDT"]
[Termination "DavidGavrilescu18 won by resignation"]

1. e4 {[%clk 0:03:00.9]} 1... c5 {[%clk 0:02:59.1]} 2. Nf3 {[%clk 0:03:00.8]}
2... e6 {[%clk 0:02:58.6]} 3. b3 {[%clk 0:02:59.1]} 3... Nc6 {[%clk 0:02:56.4]}
4. Bb2 {[%clk 0:02:59]} 4... d6 {[%clk 0:02:54.7]} 5. d4 {[%clk 0:02:58.1]} 5...
cxd4 {[%clk 0:02:54.3]} 6. Nxd4 {[%clk 0:02:59]} 6... Nf6 {[%clk 0:02:54.1]} 7.
Nd2 {[%clk 0:02:59.1]} 7... e5 {[%clk 0:02:51.5]} 8. Nf5 {[%clk 0:02:21.8]} 8...
Nxe4 {[%clk 0:02:26.8]} 9. Nxg7+ {[%clk 0:02:21.4]} 9... Bxg7 {[%clk 0:02:27.7]}
10. Nxe4 {[%clk 0:02:22]} 10... d5 {[%clk 0:02:26.1]} 11. Ng3 {[%clk 0:02:20.3]}
11... O-O {[%clk 0:02:24.6]} 12. Nh5 {[%clk 0:02:17.5]} 12... Bh8 {[%clk
0:02:20.9]} 13. h4 {[%clk 0:02:04.6]} 13... e4 {[%clk 0:02:17.9]} 14. Bxh8
{[%clk 0:02:00.1]} 14... Kxh8 {[%clk 0:02:18.8]} 15. Qd2 {[%clk 0:01:56.2]}
15... Bg4 {[%clk 0:02:11.4]} 16. Be2 {[%clk 0:01:36.4]} 16... Bxe2 {[%clk
0:02:00.7]} 17. Kxe2 {[%clk 0:01:33.1]} 17... Qe7 {[%clk 0:02:00.1]} 18. Rad1
{[%clk 0:01:24.3]} 18... Rad8 {[%clk 0:01:54.6]} 19. Rh3 {[%clk 0:01:24.5]}
19... Qe5 {[%clk 0:01:41.1]} 20. Qg5 {[%clk 0:01:16.5]} 20... Rg8 {[%clk
0:01:02.6]} 21. Qxe5+ {[%clk 0:01:10.5]} 21... Nxe5 {[%clk 0:01:03.5]} 22. Kf1
{[%clk 0:01:07.3]} 22... Rd6 {[%clk 0:00:56.5]} 23. c3 {[%clk 0:01:01.6]} 23...
Rg4 {[%clk 0:00:26.7]} 24. Rd4 {[%clk 0:00:47.2]} 24... Nc6 {[%clk 0:00:19]} 25.
Rd2 {[%clk 0:00:47.2]} 25... Ne5 {[%clk 0:00:17.6]} 26. Ng3 {[%clk 0:00:44]}
26... Nd3 {[%clk 0:00:11.8]} 27. Nf5 {[%clk 0:00:42.4]} 27... Rf6 {[%clk
0:00:10.4]} 28. Ne3 {[%clk 0:00:42.6]} 28... Rgf4 {[%clk 0:00:08.9]} 29. f3
{[%clk 0:00:30.1]} 29... Rd6 {[%clk 0:00:06.4]} 30. Ke2 {[%clk 0:00:29.5]} 30...
Rff6 {[%clk 0:00:06]} 31. Rg3 {[%clk 0:00:25.1]} 31... Nf4+ {[%clk 0:00:06.1]}
32. Kf1 {[%clk 0:00:23.9]} 32... Rfe6 {[%clk 0:00:03.4]} 33. Rd4 {[%clk
0:00:22.4]} 33... Nd3 {[%clk 0:00:02.2]} 34. Rxd5 {[%clk 0:00:19.8]} 34... Rxd5
{[%clk 0:00:02.1]} 35. Nxd5 {[%clk 0:00:20.7]} 35... exf3 {[%clk 0:00:02.9]} 36.
gxf3 {[%clk 0:00:17.8]} 36... Re1+ {[%clk 0:00:03.2]} 37. Kg2 {[%clk 0:00:18.3]}
37... Ra1 {[%clk 0:00:04.1]} 38. f4 {[%clk 0:00:17.6]} 38... Rxa2+ {[%clk
0:00:04.4]} 39. Kf3 {[%clk 0:00:18.2]} 39... Rd2 {[%clk 0:00:03.8]} 40. Nf6
{[%clk 0:00:18.2]} 40... Ne1+ {[%clk 0:00:03.3]} 41. Ke3 {[%clk 0:00:18.3]}
41... Rd3+ {[%clk 0:00:03.5]} 42. Kf2 {[%clk 0:00:17.9]} 42... Rxg3 {[%clk
0:00:04.2]} 43. Kxg3 {[%clk 0:00:18.8]} 43... Nd3 {[%clk 0:00:04.8]} 44. Nd7
{[%clk 0:00:16.8]} 44... b6 {[%clk 0:00:04.1]} 45. Kf3 {[%clk 0:00:16.6]} 45...
Nc1 {[%clk 0:00:04]} 46. b4 {[%clk 0:00:16.7]} 46... Na2 {[%clk 0:00:04.3]} 47.
Ne5 {[%clk 0:00:14.6]} 47... Kg7 {[%clk 0:00:02.8]} 48. Nc6 {[%clk 0:00:13.7]}
48... a6 {[%clk 0:00:02.6]} 49. c4 {[%clk 0:00:13.8]} 49... Nc3 {[%clk
0:00:02.7]} 50. Ke3 {[%clk 0:00:13.4]} 50... Kf6 {[%clk 0:00:03.2]} 51. Kd3
{[%clk 0:00:13.3]} 51... Na2 {[%clk 0:00:03.4]} 52. c5 {[%clk 0:00:12.7]} 52...
bxc5 {[%clk 0:00:03.2]} 53. bxc5 {[%clk 0:00:13.6]} 53... Ke6 {[%clk 0:00:03]}
54. Kd4 {[%clk 0:00:14]} 54... Nc1 {[%clk 0:00:02.1]} 55. Ne5 {[%clk 0:00:12.9]}
55... a5 {[%clk 0:00:02.4]} 56. Ke4 {[%clk 0:00:09]} 56... f6 {[%clk 0:00:02.3]}
57. f5+ {[%clk 0:00:09.2]} 57... Ke7 {[%clk 0:00:02.4]} 58. Nc6+ {[%clk
0:00:09.6]} 58... Kd7 {[%clk 0:00:02.8]} 59. Nxa5 {[%clk 0:00:10.5]} 59... Nb3
{[%clk 0:00:03.4]} 60. Nxb3 {[%clk 0:00:10.7]} 1-0